{"text_format":"1","workbook":"xlsx","n_sheets":3,"sheets":["Identificación","ALTAS","BAJAS"],"not_rendered":{"charts":0,"images":3,"macros":1,"external_links":0,"defined_names":2,"comments":0,"pivot_tables":0},"unopened":[],"bounds":{"document_bytes":16777216,"sheet_cells":100000,"rows_first":2000,"rows_last":500,"rows_between":2000,"halvings":0,"cell_chars":16384,"cell_head_chars":4096},"cells_cut":0,"cells_raw":0,"read":"whole","date_system":"1900"}

{"sheet":"Identificación","index":0,"n_rows":62,"n_cols":27,"rows_kept":62,"cut":false,"hidden":false,"merged":[[10,2,10,21],[19,2,19,7],[11,2,11,21],[19,16,19,21],[15,18,15,21],[60,2,60,8],[60,14,60,20],[12,1,12,3],[12,4,12,21],[25,2,25,14],[25,16,25,21],[19,9,19,14],[21,2,21,7],[21,9,21,14],[21,18,21,21],[28,2,28,7],[44,2,50,21],[23,2,23,7],[23,9,23,14],[23,16,23,19],[85,2,85,8],[85,9,85,15],[85,16,85,17],[86,2,86,8],[86,9,86,15],[86,16,86,17],[83,2,83,8],[83,9,83,15],[83,16,83,17],[84,2,84,8],[84,9,84,15],[84,16,84,17],[61,2,61,8],[61,14,61,20],[81,2,81,8],[81,9,81,15],[81,16,81,17],[82,2,82,8],[82,9,82,15],[82,16,82,17],[89,2,89,8],[89,9,89,15],[89,16,89,17],[90,2,90,8],[90,9,90,15],[90,16,90,17],[87,2,87,8],[87,9,87,15],[87,16,87,17],[88,2,88,8],[88,9,88,15],[88,16,88,17],[93,2,93,8],[93,9,93,15],[93,16,93,17],[94,2,94,8],[94,9,94,15],[94,16,94,17],[91,2,91,8],[91,9,91,15],[91,16,91,17],[92,2,92,8],[92,9,92,15],[92,16,92,17],[97,2,97,8],[97,9,97,15],[97,16,97,17],[98,2,98,8],[98,9,98,15],[98,16,98,17],[95,2,95,8],[95,9,95,15],[95,16,95,17],[96,2,96,8],[96,9,96,15],[96,16,96,17],[101,2,101,8],[101,9,101,15],[101,16,101,17],[102,2,102,8],[102,9,102,15],[102,16,102,17],[99,2,99,8],[99,9,99,15],[99,16,99,17],[100,2,100,8],[100,9,100,15],[100,16,100,17],[105,2,105,8],[105,9,105,15],[105,16,105,17],[106,2,106,8],[106,9,106,15],[106,16,106,17],[103,2,103,8],[103,9,103,15],[103,16,103,17],[104,2,104,8],[104,9,104,15],[104,16,104,17],[109,2,109,8],[109,9,109,15],[109,16,109,17],[110,2,110,8],[110,9,110,15],[110,16,110,17],[107,2,107,8],[107,9,107,15],[107,16,107,17],[108,2,108,8],[108,9,108,15],[108,16,108,17],[113,2,113,8],[113,9,113,15],[113,16,113,17],[114,2,114,8],[114,9,114,15],[114,16,114,17],[111,2,111,8],[111,9,111,15],[111,16,111,17],[112,2,112,8],[112,9,112,15],[112,16,112,17],[117,2,117,8],[117,9,117,15],[117,16,117,17],[118,2,118,8],[118,9,118,15],[118,16,118,17],[115,2,115,8],[115,9,115,15],[115,16,115,17],[116,2,116,8],[116,9,116,15],[116,16,116,17],[121,2,121,8],[121,9,121,15],[121,16,121,17],[122,2,122,8],[122,9,122,15],[122,16,122,17],[119,2,119,8],[119,9,119,15],[119,16,119,17],[120,2,120,8],[120,9,120,15],[120,16,120,17],[125,2,125,8],[125,9,125,15],[125,16,125,17],[126,2,126,8],[126,9,126,15],[126,16,126,17],[123,2,123,8],[123,9,123,15],[123,16,123,17],[124,2,124,8],[124,9,124,15],[124,16,124,17],[129,2,129,8],[129,9,129,15],[129,16,129,17],[130,2,130,8],[130,9,130,15],[130,16,130,17],[127,2,127,8],[127,9,127,15],[127,16,127,17],[128,2,128,8],[128,9,128,15],[128,16,128,17],[133,2,133,8],[133,9,133,15],[133,16,133,17],[134,2,134,8],[134,9,134,15],[134,16,134,17],[131,2,131,8],[131,9,131,15],[131,16,131,17],[132,2,132,8],[132,9,132,15],[132,16,132,17],[137,2,137,8],[137,9,137,15],[137,16,137,17],[135,2,135,8],[135,9,135,15],[135,16,135,17],[136,2,136,8],[136,9,136,15],[136,16,136,17]]}
[]
[]
[]
[null,null,null,null,null,null,null,null,null,null,null,null,null,null,null,null,null,null,null,null,null,null,null,null,null,null,"(Seleccione)"]
[null,null,null,null,null,null,null,null,null,null,null,null,null,null,null,null,null,null,null,null,null,null,null,null,null,null,2014]
[null,null,null,null,null,null,null,null,null,null,null,null,null,null,null,null,null,null,null,null,null,null,null,null,null,null,2015]
[null,null,null,null,null,null,null,null,null,null,null,null,null,null,null,null,null,null,null,null,null,null,null,null,null,null,2016]
[null,null,null,null,null,null,null,null,null,null,null,null,null,null,null,null,null,null,null,null,null,null,null,null,null,null,2017]
[null,null,null,null,null,null,null,null,null,null,null,null,null,null,null,null,null,null,null,null,null,null,null,null,null,null,2018]
[null,null,null,null,null,null,null,null,null,null,"Instrucciones ",null,null,null,null,null,null,null,null,null,null,null,null,null,null,null,2019]
[null,"1.","Presentar formulario impreso y con firma en todas las hojas, en Mesa de Entrada de DINAMA",null,null,null,null,null,null,null,null,null,null,null,null,null,null,null,null,null,null,null,null,null,null,null,2020]
[null,"2.  ","El informe completo deberá ser enviado en formato Excel por correo electrónico a  residuos.industriales@mvotma.gub.uy  "]
[null,"Advertencia: ",null,null,"En caso de discrepancia en la información proporcionada en los formularios solo se considerará válida la incluida en el formulario impreso"]
[]
[null,null,null,null,null,null,null,null,null,null,null,null,null,null,null,null,null,null,"Fecha (dd/mm/aaaa)"]
[]
[]
[]
[null,null,"Nombre o Razón Social",null,null,null,null,null,null,"Tipo de Institución o Sociedad",null,null,null,null,null,null,"RUT"]
[]
[null,null,"Correo electrónico",null,null,null,null,null,null,"Teléfono",null,null,null,null,null,null,"Fax",null,"Página Web"]
[]
[null,null,"Domicilio de la Empresa",null,null,null,null,null,null,"Ciudad",null,null,null,null,null,null,"Departamento",null,null,null,null,"Código Postal"]
[]
[null,null,"Nombre: Titular, Representante legal o Apoderado",null,null,null,null,null,null,null,null,null,null,null,null,null,"C.I."]
[]
[]
[null,null,"N° Resolución de habilitación"]
[]
[]
[]
[]
[]
[null,null,"Marque con una X la opción que corresponda"]
[]
[null,null,null,null,null,"Se informa altas de vehículos   ",null,null,{"$f":"IF(G36=\"\",\"\",\"Deberá completar la hoja ALTAS\")","v":""}]
[]
[null,null,null,null,null,"Se informa bajas de vehículos  ",null,null,{"$f":"IF(G38=\"\",\"\",\"Deberá completar la hoja BAJAS\")","v":""}]
[]
[]
[]
[]
[]
[]
[]
[]
[]
[]
[]
[]
[]
[]
[]
[]
[]
[]
[]
[]
[]
[]
[null,null,null,null,null,null,null,null,null,null,null,null,null,null,{"$f":"C26","v":0}]
[null,null,"Firma del Titular, Representante Legal o Apoderado",null,null,null,null,null,null,null,null,null,null,null,"Aclaración de Firma"]

{"sheet":"ALTAS","index":1,"n_rows":368,"n_cols":18,"rows_kept":368,"cut":false,"hidden":false,"merged":[[16,13,17,13],[2,5,2,7],[16,1,17,1],[16,2,17,2],[16,3,17,3],[16,4,17,4],[16,5,17,5],[16,6,17,6],[16,7,16,8],[16,9,17,9],[4,5,4,7],[4,10,4,12],[16,10,17,10],[16,11,17,11],[16,12,17,12]]}
[]
[]
[null,null,null,null,"Registrante",{"$f":"Identificación!C20","v":0}]
[null,null,null,null,{"$f":"IF(AND($E$227>0,$J$229=0),\"Complete\",\"  \")","v":"  "},null,null,null,null,"Firma:"]
[null,null,null,null,"Fecha",{"$f":"Identificación!S16","v":"00:00:00"},null,null,null,"Aclaración:",{"$f":"Identificación!C26","v":0}]
[]
[]
[]
[]
[null,null,null,null,null,"Ingrese en la casilla, la cantidad de equipos de transporte que dará de alta  ",1,"  y haga click en el botón siguiente para generar la planilla"]
[]
[]
[null,"*Completar en caso que corresponda: Permiso Nacional de Circulación (PNC) o Cédula de Identificación (CI) corresponde a los vehículos con capacidad de más de 2 (dos) toneladas. "]
[null,"Certificado de Aptitud Técnica (CAT) correponde a los vehículos con capacidad menor o igual a 2 (dos) toneladas y que tranporten residuos peligrosos. "]
[null,"Adjuntar las copias de dichos documentos"]
[]
[null,"Marca","Modelo","Año","Matrícula ","Tipo","Tipo de caja","Capacidad de carga",null,"Categoría Residuos","Número de registro de PNC o CI*","Número del CAT*","Autonomía de carga","Otro, especifique",null,null,null,"(Seleccione)"]
[null,null,null,null,null,null,null,"m3","ton",null,null,null,null,null,null,"(Seleccione)",null,"NO"]
[1,null,null,null,null,"(Seleccione)","(Seleccione)",null,null,"(Seleccione)",null,null,"(Seleccione)",null,null,"Vehículo",null,"Volcadora"]
[2,null,null,null,null,"(Seleccione)","(Seleccione)",null,null,"(Seleccione)",null,"                                                                ","(Seleccione)",null,null,"Acoplado",null,"Pluma instalada"]
[3,null,null,null,null,"(Seleccione)","(Seleccione)",null,null,"(Seleccione)",null,"                                                                ","(Seleccione)",null,null,null,null,"Otro"]
[4,null,null,null,null,"(Seleccione)","(Seleccione)",null,null,"(Seleccione)",null,"                                                                ","(Seleccione)",null,null,null,"(Seleccione)"]
[5,null,null,null,null,"(Seleccione)","(Seleccione)",null,null,"(Seleccione)",null,"                                                                ","(Seleccione)",null,null,null,"Cat. I"]
[6,null,null,null,null,"(Seleccione)","(Seleccione)",null,null,"(Seleccione)",null,"                                                                ","(Seleccione)",null,null,null,"Cat. II"]
[7,null,null,null,null,"(Seleccione)","(Seleccione)",null,null,"(Seleccione)",null,"                                                                ","(Seleccione)",null,null,null,"Cat I y II"]
[8,null,null,null,null,"(Seleccione)","(Seleccione)",null,null,"(Seleccione)",null,"                                                                ","(Seleccione)",null,null,null,"(Seleccione)"]
[9,null,null,null,null,"(Seleccione)","(Seleccione)",null,null,"(Seleccione)",null,"                                                                ","(Seleccione)",null,null,null,"Caja abierta"]
[10,null,null,null,null,"(Seleccione)","(Seleccione)",null,null,"(Seleccione)",null,"                                                                ","(Seleccione)",null,null,null,"Caja Cerrada"]
[11,null,null,null,null,"(Seleccione)","(Seleccione)",null,null,"(Seleccione)",null,"                                                                ","(Seleccione)",null,null,null,"Portacontenedor"]
[12,null,null,null,null,"(Seleccione)","(Seleccione)",null,null,"(Seleccione)",null,"                                                                ","(Seleccione)",null,null,null,"Cisterna"]
[13,null,null,null,null,"(Seleccione)","(Seleccione)",null,null,"(Seleccione)",null,"                                                                ","(Seleccione)"]
[14,null,null,null,null,"(Seleccione)","(Seleccione)",null,null,"(Seleccione)",null,"                                                                ","(Seleccione)"]
[15,null,null,null,null,"(Seleccione)","(Seleccione)",null,null,"(Seleccione)",null,"                                                                ","(Seleccione)"]
[16,null,null,null,null,"(Seleccione)","(Seleccione)",null,null,"(Seleccione)",null,"                                                                ","(Seleccione)"]
[17,null,null,null,null,"(Seleccione)","(Seleccione)",null,null,"(Seleccione)",null,"                                                                ","(Seleccione)"]
[18,null,null,null,null,"(Seleccione)","(Seleccione)",null,null,"(Seleccione)",null,"                                                                ","(Seleccione)"]
[19,null,null,null,null,"(Seleccione)","(Seleccione)",null,null,"(Seleccione)",null,"                                                                ","(Seleccione)"]
[20,null,null,null,null,"(Seleccione)","(Seleccione)",null,null,"(Seleccione)",null,"                                                                ","(Seleccione)"]
[{"$f":"+A38+1","v":21},null,null,null,null,"(Seleccione)","(Seleccione)",null,null,"(Seleccione)",null,"                                                                ","(Seleccione)"]
[{"$f":"+A39+1","v":22},null,null,null,null,"(Seleccione)","(Seleccione)",null,null,"(Seleccione)",null,"                                                                ","(Seleccione)"]
[23,null,null,null,null,"(Seleccione)","(Seleccione)",null,null,"(Seleccione)",null,"                                                                ","(Seleccione)"]
[24,null,null,null,null,"(Seleccione)","(Seleccione)",null,null,"(Seleccione)",null,"                                                                ","(Seleccione)"]
[25,null,null,null,null,"(Seleccione)","(Seleccione)",null,null,"(Seleccione)",null,"                                                                ","(Seleccione)"]
[26,null,null,null,null,"(Seleccione)","(Seleccione)",null,null,"(Seleccione)",null,"                                                                ","(Seleccione)"]
[27,null,null,null,null,"(Seleccione)","(Seleccione)",null,null,"(Seleccione)",null,"                                                                ","(Seleccione)"]
[28,null,null,null,null,"(Seleccione)","(Seleccione)",null,null,"(Seleccione)",null,"                                                                ","(Seleccione)"]
[29,null,null,null,null,"(Seleccione)","(Seleccione)",null,null,"(Seleccione)",null,"                                                                ","(Seleccione)"]
[30,null,null,null,null,"(Seleccione)","(Seleccione)",null,null,"(Seleccione)",null,"                                                                ","(Seleccione)"]
[31,null,null,null,null,"(Seleccione)","(Seleccione)",null,null,"(Seleccione)",null,"                                                                ","(Seleccione)"]
[32,null,null,null,null,"(Seleccione)","(Seleccione)",null,null,"(Seleccione)",null,"                                                                ","(Seleccione)"]
[33,null,null,null,null,"(Seleccione)","(Seleccione)",null,null,"(Seleccione)",null,"                                                                ","(Seleccione)"]
[34,null,null,null,null,"(Seleccione)","(Seleccione)",null,null,"(Seleccione)",null,"                                                                ","(Seleccione)"]
[35,null,null,null,null,"(Seleccione)","(Seleccione)",null,null,"(Seleccione)",null,"                                                                ","(Seleccione)"]
[36,null,null,null,null,"(Seleccione)","(Seleccione)",null,null,"(Seleccione)",null,"                                                                ","(Seleccione)"]
[37,null,null,null,null,"(Seleccione)","(Seleccione)",null,null,"(Seleccione)",null,"                                                                ","(Seleccione)"]
[38,null,null,null,null,"(Seleccione)","(Seleccione)",null,null,"(Seleccione)",null,"                                                                ","(Seleccione)"]
[39,null,null,null,null,"(Seleccione)","(Seleccione)",null,null,"(Seleccione)",null,"                                                                ","(Seleccione)"]
[40,null,null,null,null,"(Seleccione)","(Seleccione)",null,null,"(Seleccione)",null,"                                                                ","(Seleccione)"]
[41,null,null,null,null,"(Seleccione)","(Seleccione)",null,null,"(Seleccione)",null,"                                                                ","(Seleccione)"]
[42,null,null,null,null,"(Seleccione)","(Seleccione)",null,null,"(Seleccione)",null,"                                                                ","(Seleccione)"]
[43,null,null,null,null,"(Seleccione)","(Seleccione)",null,null,"(Seleccione)",null,"                                                                ","(Seleccione)"]
[44,null,null,null,null,"(Seleccione)","(Seleccione)",null,null,"(Seleccione)",null,"                                                                ","(Seleccione)"]
[45,null,null,null,null,"(Seleccione)","(Seleccione)",null,null,"(Seleccione)",null,"                                                                ","(Seleccione)"]
[46,null,null,null,null,"(Seleccione)","(Seleccione)",null,null,"(Seleccione)",null,"                                                                ","(Seleccione)"]
[47,null,null,null,null,"(Seleccione)","(Seleccione)",null,null,"(Seleccione)",null,"                                                                ","(Seleccione)"]
[48,null,null,null,null,"(Seleccione)","(Seleccione)",null,null,"(Seleccione)",null,"                                                                ","(Seleccione)"]
[49,null,null,null,null,"(Seleccione)","(Seleccione)",null,null,"(Seleccione)",null,"                                                                ","(Seleccione)"]
[50,null,null,null,null,"(Seleccione)","(Seleccione)",null,null,"(Seleccione)",null,"                                                                ","(Seleccione)"]
[51,null,null,null,null,"(Seleccione)","(Seleccione)",null,null,"(Seleccione)",null,"                                                                ","(Seleccione)"]
[52,null,null,null,null,"(Seleccione)","(Seleccione)",null,null,"(Seleccione)",null,"                                                                ","(Seleccione)"]
[53,null,null,null,null,"(Seleccione)","(Seleccione)",null,null,"(Seleccione)",null,"                                                                ","(Seleccione)"]
[54,null,null,null,null,"(Seleccione)","(Seleccione)",null,null,"(Seleccione)",null,"                                                                ","(Seleccione)"]
[55,null,null,null,null,"(Seleccione)","(Seleccione)",null,null,"(Seleccione)",null,"                                                                ","(Seleccione)"]
[56,null,null,null,null,"(Seleccione)","(Seleccione)",null,null,"(Seleccione)",null,"                                                                ","(Seleccione)"]
[57,null,null,null,null,"(Seleccione)","(Seleccione)",null,null,"(Seleccione)",null,"                                                                ","(Seleccione)"]
[58,null,null,null,null,"(Seleccione)","(Seleccione)",null,null,"(Seleccione)",null,"                                                                ","(Seleccione)"]
[59,null,null,null,null,"(Seleccione)","(Seleccione)",null,null,"(Seleccione)",null,"                                                                ","(Seleccione)"]
[60,null,null,null,null,"(Seleccione)","(Seleccione)",null,null,"(Seleccione)",null,"                                                                ","(Seleccione)"]
[61,null,null,null,null,"(Seleccione)","(Seleccione)",null,null,"(Seleccione)",null,"                                                                ","(Seleccione)"]
[62,null,null,null,null,"(Seleccione)","(Seleccione)",null,null,"(Seleccione)",null,"                                                                ","(Seleccione)"]
[63,null,null,null,null,"(Seleccione)","(Seleccione)",null,null,"(Seleccione)",null,"                                                                ","(Seleccione)"]
[64,null,null,null,null,"(Seleccione)","(Seleccione)",null,null,"(Seleccione)",null,"                                                                ","(Seleccione)"]
[65,null,null,null,null,"(Seleccione)","(Seleccione)",null,null,"(Seleccione)",null,"                                                                ","(Seleccione)"]
[66,null,null,null,null,"(Seleccione)","(Seleccione)",null,null,"(Seleccione)",null,"                                                                ","(Seleccione)"]
[67,null,null,null,null,"(Seleccione)","(Seleccione)",null,null,"(Seleccione)",null,"                                                                ","(Seleccione)"]
[68,null,null,null,null,"(Seleccione)","(Seleccione)",null,null,"(Seleccione)",null,"                                                                ","(Seleccione)"]
[69,null,null,null,null,"(Seleccione)","(Seleccione)",null,null,"(Seleccione)",null,"                                                                ","(Seleccione)"]
[70,null,null,null,null,"(Seleccione)","(Seleccione)",null,null,"(Seleccione)",null,"                                                                ","(Seleccione)"]
[71,null,null,null,null,"(Seleccione)","(Seleccione)",null,null,"(Seleccione)",null,"                                                                ","(Seleccione)"]
[72,null,null,null,null,"(Seleccione)","(Seleccione)",null,null,"(Seleccione)",null,"                                                                ","(Seleccione)"]
[73,null,null,null,null,"(Seleccione)","(Seleccione)",null,null,"(Seleccione)",null,"                                                                ","(Seleccione)"]
[74,null,null,null,null,"(Seleccione)","(Seleccione)",null,null,"(Seleccione)",null,"                                                                ","(Seleccione)"]
[75,null,null,null,null,"(Seleccione)","(Seleccione)",null,null,"(Seleccione)",null,"                                                                ","(Seleccione)"]
[76,null,null,null,null,"(Seleccione)","(Seleccione)",null,null,"(Seleccione)",null,"                                                                ","(Seleccione)"]
[77,null,null,null,null,"(Seleccione)","(Seleccione)",null,null,"(Seleccione)",null,"                                                                ","(Seleccione)"]
[78,null,null,null,null,"(Seleccione)","(Seleccione)",null,null,"(Seleccione)",null,"                                                                ","(Seleccione)"]
[79,null,null,null,null,"(Seleccione)","(Seleccione)",null,null,"(Seleccione)",null,"                                                                ","(Seleccione)"]
[80,null,null,null,null,"(Seleccione)","(Seleccione)",null,null,"(Seleccione)",null,"                                                                ","(Seleccione)"]
[81,null,null,null,null,"(Seleccione)","(Seleccione)",null,null,"(Seleccione)",null,"                                                                ","(Seleccione)"]
[82,null,null,null,null,"(Seleccione)","(Seleccione)",null,null,"(Seleccione)",null,"                                                                ","(Seleccione)"]
[83,null,null,null,null,"(Seleccione)","(Seleccione)",null,null,"(Seleccione)",null,"                                                                ","(Seleccione)"]
[84,null,null,null,null,"(Seleccione)","(Seleccione)",null,null,"(Seleccione)",null,"                                                                ","(Seleccione)"]
[85,null,null,null,null,"(Seleccione)","(Seleccione)",null,null,"(Seleccione)",null,"                                                                ","(Seleccione)"]
[{"$f":"+A103+1","v":86},null,null,null,null,"(Seleccione)","(Seleccione)",null,null,"(Seleccione)",null,"                                                                ","(Seleccione)"]
[87,null,null,null,null,"(Seleccione)","(Seleccione)",null,null,"(Seleccione)",null,"                                                                ","(Seleccione)"]
[88,null,null,null,null,"(Seleccione)","(Seleccione)",null,null,"(Seleccione)",null,"                                                                ","(Seleccione)"]
[89,null,null,null,null,"(Seleccione)","(Seleccione)",null,null,"(Seleccione)",null,"                                                                ","(Seleccione)"]
[90,null,null,null,null,"(Seleccione)","(Seleccione)",null,null,"(Seleccione)",null,"                                                                ","(Seleccione)"]
[91,null,null,null,null,"(Seleccione)","(Seleccione)",null,null,"(Seleccione)",null,"                                                                ","(Seleccione)"]
[92,null,null,null,null,"(Seleccione)","(Seleccione)",null,null,"(Seleccione)",null,"                                                                ","(Seleccione)"]
[93,null,null,null,null,"(Seleccione)","(Seleccione)",null,null,"(Seleccione)",null,"                                                                ","(Seleccione)"]
[94,null,null,null,null,"(Seleccione)","(Seleccione)",null,null,"(Seleccione)",null,"                                                                ","(Seleccione)"]
[95,null,null,null,null,"(Seleccione)","(Seleccione)",null,null,"(Seleccione)",null,"                                                                ","(Seleccione)"]
[96,null,null,null,null,"(Seleccione)","(Seleccione)",null,null,"(Seleccione)",null,"                                                                ","(Seleccione)"]
[97,null,null,null,null,"(Seleccione)","(Seleccione)",null,null,"(Seleccione)",null,"                                                                ","(Seleccione)"]
[98,null,null,null,null,"(Seleccione)","(Seleccione)",null,null,"(Seleccione)",null,"                                                                ","(Seleccione)"]
[99,null,null,null,null,"(Seleccione)","(Seleccione)",null,null,"(Seleccione)",null,"                                                                ","(Seleccione)"]
[100,null,null,null,null,"(Seleccione)","(Seleccione)",null,null,"(Seleccione)",null,"                                                                ","(Seleccione)"]
[101,null,null,null,null,"(Seleccione)","(Seleccione)",null,null,"(Seleccione)",null,"                                                                ","(Seleccione)"]
[102,null,null,null,null,"(Seleccione)","(Seleccione)",null,null,"(Seleccione)",null,"                                                                ","(Seleccione)"]
[103,null,null,null,null,"(Seleccione)","(Seleccione)",null,null,"(Seleccione)",null,"                                                                ","(Seleccione)"]
[104,null,null,null,null,"(Seleccione)","(Seleccione)",null,null,"(Seleccione)",null,"                                                                ","(Seleccione)"]
[105,null,null,null,null,"(Seleccione)","(Seleccione)",null,null,"(Seleccione)",null,"                                                                ","(Seleccione)"]
[106,null,null,null,null,"(Seleccione)","(Seleccione)",null,null,"(Seleccione)",null,"                                                                ","(Seleccione)"]
[107,null,null,null,null,"(Seleccione)","(Seleccione)",null,null,"(Seleccione)",null,"                                                                ","(Seleccione)"]
[108,null,null,null,null,"(Seleccione)","(Seleccione)",null,null,"(Seleccione)",null,"                                                                ","(Seleccione)"]
[109,null,null,null,null,"(Seleccione)","(Seleccione)",null,null,"(Seleccione)",null,"                                                                ","(Seleccione)"]
[110,null,null,null,null,"(Seleccione)","(Seleccione)",null,null,"(Seleccione)",null,"                                                                ","(Seleccione)"]
[111,null,null,null,null,"(Seleccione)","(Seleccione)",null,null,"(Seleccione)",null,"                                                                ","(Seleccione)"]
[112,null,null,null,null,"(Seleccione)","(Seleccione)",null,null,"(Seleccione)",null,"                                                                ","(Seleccione)"]
[113,null,null,null,null,"(Seleccione)","(Seleccione)",null,null,"(Seleccione)",null,"                                                                ","(Seleccione)"]
[114,null,null,null,null,"(Seleccione)","(Seleccione)",null,null,"(Seleccione)",null,"                                                                ","(Seleccione)"]
[115,null,null,null,null,"(Seleccione)","(Seleccione)",null,null,"(Seleccione)",null,"                                                                ","(Seleccione)"]
[116,null,null,null,null,"(Seleccione)","(Seleccione)",null,null,"(Seleccione)",null,"                                                                ","(Seleccione)"]
[117,null,null,null,null,"(Seleccione)","(Seleccione)",null,null,"(Seleccione)",null,"                                                                ","(Seleccione)"]
[118,null,null,null,null,"(Seleccione)","(Seleccione)",null,null,"(Seleccione)",null,"                                                                ","(Seleccione)"]
[119,null,null,null,null,"(Seleccione)","(Seleccione)",null,null,"(Seleccione)",null,"                                                                ","(Seleccione)"]
[120,null,null,null,null,"(Seleccione)","(Seleccione)",null,null,"(Seleccione)",null,"                                                                ","(Seleccione)"]
[121,null,null,null,null,"(Seleccione)","(Seleccione)",null,null,"(Seleccione)",null,"                                                                ","(Seleccione)"]
[122,null,null,null,null,"(Seleccione)","(Seleccione)",null,null,"(Seleccione)",null,"                                                                ","(Seleccione)"]
[123,null,null,null,null,"(Seleccione)","(Seleccione)",null,null,"(Seleccione)",null,"                                                                ","(Seleccione)"]
[124,null,null,null,null,"(Seleccione)","(Seleccione)",null,null,"(Seleccione)",null,"                                                                ","(Seleccione)"]
[125,null,null,null,null,"(Seleccione)","(Seleccione)",null,null,"(Seleccione)",null,"                                                                ","(Seleccione)"]
[126,null,null,null,null,"(Seleccione)","(Seleccione)",null,null,"(Seleccione)",null,"                                                                ","(Seleccione)"]
[127,null,null,null,null,"(Seleccione)","(Seleccione)",null,null,"(Seleccione)",null,"                                                                ","(Seleccione)"]
[128,null,null,null,null,"(Seleccione)","(Seleccione)",null,null,"(Seleccione)",null,"                                                                ","(Seleccione)"]
[129,null,null,null,null,"(Seleccione)","(Seleccione)",null,null,"(Seleccione)",null,"                                                                ","(Seleccione)"]
[130,null,null,null,null,"(Seleccione)","(Seleccione)",null,null,"(Seleccione)",null,"                                                                ","(Seleccione)"]
[131,null,null,null,null,"(Seleccione)","(Seleccione)",null,null,"(Seleccione)",null,"                                                                ","(Seleccione)"]
[132,null,null,null,null,"(Seleccione)","(Seleccione)",null,null,"(Seleccione)",null,"                                                                ","(Seleccione)"]
[133,null,null,null,null,"(Seleccione)","(Seleccione)",null,null,"(Seleccione)",null,"                                                                ","(Seleccione)"]
[134,null,null,null,null,"(Seleccione)","(Seleccione)",null,null,"(Seleccione)",null,"                                                                ","(Seleccione)"]
[135,null,null,null,null,"(Seleccione)","(Seleccione)",null,null,"(Seleccione)",null,"                                                                ","(Seleccione)"]
[136,null,null,null,null,"(Seleccione)","(Seleccione)",null,null,"(Seleccione)",null,"                                                                ","(Seleccione)"]
[137,null,null,null,null,"(Seleccione)","(Seleccione)",null,null,"(Seleccione)",null,"                                                                ","(Seleccione)"]
[138,null,null,null,null,"(Seleccione)","(Seleccione)",null,null,"(Seleccione)",null,"                                                                ","(Seleccione)"]
[139,null,null,null,null,"(Seleccione)","(Seleccione)",null,null,"(Seleccione)",null,"                                                                ","(Seleccione)"]
[140,null,null,null,null,"(Seleccione)","(Seleccione)",null,null,"(Seleccione)",null,"                                                                ","(Seleccione)"]
[141,null,null,null,null,"(Seleccione)","(Seleccione)",null,null,"(Seleccione)",null,"                                                                ","(Seleccione)"]
[142,null,null,null,null,"(Seleccione)","(Seleccione)",null,null,"(Seleccione)",null,"                                                                ","(Seleccione)"]
[143,null,null,null,null,"(Seleccione)","(Seleccione)",null,null,"(Seleccione)",null,"                                                                ","(Seleccione)"]
[144,null,null,null,null,"(Seleccione)","(Seleccione)",null,null,"(Seleccione)",null,"                                                                ","(Seleccione)"]
[145,null,null,null,null,"(Seleccione)","(Seleccione)",null,null,"(Seleccione)",null,"                                                                ","(Seleccione)"]
[146,null,null,null,null,"(Seleccione)","(Seleccione)",null,null,"(Seleccione)",null,"                                                                ","(Seleccione)"]
[147,null,null,null,null,"(Seleccione)","(Seleccione)",null,null,"(Seleccione)",null,"                                                                ","(Seleccione)"]
[148,null,null,null,null,"(Seleccione)","(Seleccione)",null,null,"(Seleccione)",null,"                                                                ","(Seleccione)"]
[149,null,null,null,null,"(Seleccione)","(Seleccione)",null,null,"(Seleccione)",null,"                                                                ","(Seleccione)"]
[{"$f":"+A167+1","v":150},null,null,null,null,"(Seleccione)","(Seleccione)",null,null,"(Seleccione)",null,"                                                                ","(Seleccione)"]
[151,null,null,null,null,"(Seleccione)","(Seleccione)",null,null,"(Seleccione)",null,"                                                                ","(Seleccione)"]
[152,null,null,null,null,"(Seleccione)","(Seleccione)",null,null,"(Seleccione)",null,"                                                                ","(Seleccione)"]
[153,null,null,null,null,"(Seleccione)","(Seleccione)",null,null,"(Seleccione)",null,"                                                                ","(Seleccione)"]
[154,null,null,null,null,"(Seleccione)","(Seleccione)",null,null,"(Seleccione)",null,"                                                                ","(Seleccione)"]
[155,null,null,null,null,"(Seleccione)","(Seleccione)",null,null,"(Seleccione)",null,"                                                                ","(Seleccione)"]
[156,null,null,null,null,"(Seleccione)","(Seleccione)",null,null,"(Seleccione)",null,"                                                                ","(Seleccione)"]
[157,null,null,null,null,"(Seleccione)","(Seleccione)",null,null,"(Seleccione)",null,"                                                                ","(Seleccione)"]
[158,null,null,null,null,"(Seleccione)","(Seleccione)",null,null,"(Seleccione)",null,"                                                                ","(Seleccione)"]
[159,null,null,null,null,"(Seleccione)","(Seleccione)",null,null,"(Seleccione)",null,"                                                                ","(Seleccione)"]
[160,null,null,null,null,"(Seleccione)","(Seleccione)",null,null,"(Seleccione)",null,"                                                                ","(Seleccione)"]
[161,null,null,null,null,"(Seleccione)","(Seleccione)",null,null,"(Seleccione)",null,"                                                                ","(Seleccione)"]
[162,null,null,null,null,"(Seleccione)","(Seleccione)",null,null,"(Seleccione)",null,"                                                                ","(Seleccione)"]
[163,null,null,null,null,"(Seleccione)","(Seleccione)",null,null,"(Seleccione)",null,"                                                                ","(Seleccione)"]
[164,null,null,null,null,"(Seleccione)","(Seleccione)",null,null,"(Seleccione)",null,"                                                                ","(Seleccione)"]
[165,null,null,null,null,"(Seleccione)","(Seleccione)",null,null,"(Seleccione)",null,"                                                                ","(Seleccione)"]
[166,null,null,null,null,"(Seleccione)","(Seleccione)",null,null,"(Seleccione)",null,"                                                                ","(Seleccione)"]
[167,null,null,null,null,"(Seleccione)","(Seleccione)",null,null,"(Seleccione)",null,"                                                                ","(Seleccione)"]
[168,null,null,null,null,"(Seleccione)","(Seleccione)",null,null,"(Seleccione)",null,"                                                                ","(Seleccione)"]
[169,null,null,null,null,"(Seleccione)","(Seleccione)",null,null,"(Seleccione)",null,"                                                                ","(Seleccione)"]
[170,null,null,null,null,"(Seleccione)","(Seleccione)",null,null,"(Seleccione)",null,"                                                                ","(Seleccione)"]
[171,null,null,null,null,"(Seleccione)","(Seleccione)",null,null,"(Seleccione)",null,"                                                                ","(Seleccione)"]
[172,null,null,null,null,"(Seleccione)","(Seleccione)",null,null,"(Seleccione)",null,"                                                                ","(Seleccione)"]
[173,null,null,null,null,"(Seleccione)","(Seleccione)",null,null,"(Seleccione)",null,"                                                                ","(Seleccione)"]
[174,null,null,null,null,"(Seleccione)","(Seleccione)",null,null,"(Seleccione)",null,"                                                                ","(Seleccione)"]
[175,null,null,null,null,"(Seleccione)","(Seleccione)",null,null,"(Seleccione)",null,"                                                                ","(Seleccione)"]
[176,null,null,null,null,"(Seleccione)","(Seleccione)",null,null,"(Seleccione)",null,"                                                                ","(Seleccione)"]
[177,null,null,null,null,"(Seleccione)","(Seleccione)",null,null,"(Seleccione)",null,"                                                                ","(Seleccione)"]
[178,null,null,null,null,"(Seleccione)","(Seleccione)",null,null,"(Seleccione)",null,"                                                                ","(Seleccione)"]
[179,null,null,null,null,"(Seleccione)","(Seleccione)",null,null,"(Seleccione)",null,"                                                                ","(Seleccione)"]
[180,null,null,null,null,"(Seleccione)","(Seleccione)",null,null,"(Seleccione)",null,"                                                                ","(Seleccione)"]
[181,null,null,null,null,"(Seleccione)","(Seleccione)",null,null,"(Seleccione)",null,"                                                                ","(Seleccione)"]
[182,null,null,null,null,"(Seleccione)","(Seleccione)",null,null,"(Seleccione)",null,"                                                                ","(Seleccione)"]
[183,null,null,null,null,"(Seleccione)","(Seleccione)",null,null,"(Seleccione)",null,"                                                                ","(Seleccione)"]
[184,null,null,null,null,"(Seleccione)","(Seleccione)",null,null,"(Seleccione)",null,"                                                                ","(Seleccione)"]
[185,null,null,null,null,"(Seleccione)","(Seleccione)",null,null,"(Seleccione)",null,"                                                                ","(Seleccione)"]
[186,null,null,null,null,"(Seleccione)","(Seleccione)",null,null,"(Seleccione)",null,"                                                                ","(Seleccione)"]
[187,null,null,null,null,"(Seleccione)","(Seleccione)",null,null,"(Seleccione)",null,"                                                                ","(Seleccione)"]
[188,null,null,null,null,"(Seleccione)","(Seleccione)",null,null,"(Seleccione)",null,"                                                                ","(Seleccione)"]
[189,null,null,null,null,"(Seleccione)","(Seleccione)",null,null,"(Seleccione)",null,"                                                                ","(Seleccione)"]
[190,null,null,null,null,"(Seleccione)","(Seleccione)",null,null,"(Seleccione)",null,"                                                                ","(Seleccione)"]
[191,null,null,null,null,"(Seleccione)","(Seleccione)",null,null,"(Seleccione)",null,"                                                                ","(Seleccione)"]
[192,null,null,null,null,"(Seleccione)","(Seleccione)",null,null,"(Seleccione)",null,"                                                                ","(Seleccione)"]
[193,null,null,null,null,"(Seleccione)","(Seleccione)",null,null,"(Seleccione)",null,"                                                                ","(Seleccione)"]
[194,null,null,null,null,"(Seleccione)","(Seleccione)",null,null,"(Seleccione)",null,"                                                                ","(Seleccione)"]
[195,null,null,null,null,"(Seleccione)","(Seleccione)",null,null,"(Seleccione)",null,"                                                                ","(Seleccione)"]
[196,null,null,null,null,"(Seleccione)","(Seleccione)",null,null,"(Seleccione)",null,"                                                                ","(Seleccione)"]
[197,null,null,null,null,"(Seleccione)","(Seleccione)",null,null,"(Seleccione)",null,"                                                                ","(Seleccione)"]
[198,null,null,null,null,"(Seleccione)","(Seleccione)",null,null,"(Seleccione)",null,"                                                                ","(Seleccione)"]
[199,null,null,null,null,"(Seleccione)","(Seleccione)",null,null,"(Seleccione)",null,"                                                                ","(Seleccione)"]
[200,null,null,null,null,"(Seleccione)","(Seleccione)",null,null,"(Seleccione)",null,"                                                                ","(Seleccione)"]
[201,null,null,null,null,"(Seleccione)","(Seleccione)",null,null,"(Seleccione)",null,"                                                                ","(Seleccione)"]
[202,null,null,null,null,"(Seleccione)","(Seleccione)",null,null,"(Seleccione)",null,"                                                                ","(Seleccione)"]
[203,null,null,null,null,"(Seleccione)","(Seleccione)",null,null,"(Seleccione)",null,"                                                                ","(Seleccione)"]
[204,null,null,null,null,"(Seleccione)","(Seleccione)",null,null,"(Seleccione)",null,"                                                                ","(Seleccione)"]
[205,null,null,null,null,"(Seleccione)","(Seleccione)",null,null,"(Seleccione)",null,"                                                                ","(Seleccione)"]
[206,null,null,null,null,"(Seleccione)","(Seleccione)",null,null,"(Seleccione)",null,"                                                                ","(Seleccione)"]
[207,null,null,null,null,"(Seleccione)","(Seleccione)",null,null,"(Seleccione)",null,"                                                                ","(Seleccione)"]
[208,null,null,null,null,"(Seleccione)","(Seleccione)",null,null,"(Seleccione)",null,"                                                                ","(Seleccione)"]
[209,null,null,null,null,"(Seleccione)","(Seleccione)",null,null,"(Seleccione)",null,"                                                                ","(Seleccione)"]
[210,null,null,null,null,"(Seleccione)","(Seleccione)",null,null,"(Seleccione)",null,"                                                                ","(Seleccione)"]
[211,null,null,null,null,"(Seleccione)","(Seleccione)",null,null,"(Seleccione)",null,"                                                                ","(Seleccione)"]
[212,null,null,null,null,"(Seleccione)","(Seleccione)",null,null,"(Seleccione)",null,"                                                                ","(Seleccione)"]
[213,null,null,null,null,"(Seleccione)","(Seleccione)",null,null,"(Seleccione)",null,"                                                                ","(Seleccione)"]
[{"$f":"+A231+1","v":214},null,null,null,null,"(Seleccione)","(Seleccione)",null,null,"(Seleccione)",null,"                                                                ","(Seleccione)"]
[215,null,null,null,null,"(Seleccione)","(Seleccione)",null,null,"(Seleccione)",null,"                                                                ","(Seleccione)"]
[216,null,null,null,null,"(Seleccione)","(Seleccione)",null,null,"(Seleccione)",null,"                                                                ","(Seleccione)"]
[217,null,null,null,null,"(Seleccione)","(Seleccione)",null,null,"(Seleccione)",null,"                                                                ","(Seleccione)"]
[218,null,null,null,null,"(Seleccione)","(Seleccione)",null,null,"(Seleccione)",null,"                                                                ","(Seleccione)"]
[219,null,null,null,null,"(Seleccione)","(Seleccione)",null,null,"(Seleccione)",null,"                                                                ","(Seleccione)"]
[220,null,null,null,null,"(Seleccione)","(Seleccione)",null,null,"(Seleccione)",null,"                                                                ","(Seleccione)"]
[221,null,null,null,null,"(Seleccione)","(Seleccione)",null,null,"(Seleccione)",null,"                                                                ","(Seleccione)"]
[222,null,null,null,null,"(Seleccione)","(Seleccione)",null,null,"(Seleccione)",null,"                                                                ","(Seleccione)"]
[223,null,null,null,null,"(Seleccione)","(Seleccione)",null,null,"(Seleccione)",null,"                                                                ","(Seleccione)"]
[224,null,null,null,null,"(Seleccione)","(Seleccione)",null,null,"(Seleccione)",null,"                                                                ","(Seleccione)"]
[225,null,null,null,null,"(Seleccione)","(Seleccione)",null,null,"(Seleccione)",null,"                                                                ","(Seleccione)"]
[226,null,null,null,null,"(Seleccione)","(Seleccione)",null,null,"(Seleccione)",null,"                                                                ","(Seleccione)"]
[227,null,null,null,null,"(Seleccione)","(Seleccione)",null,null,"(Seleccione)",null,"                                                                ","(Seleccione)"]
[228,null,null,null,null,"(Seleccione)","(Seleccione)",null,null,"(Seleccione)",null,"                                                                ","(Seleccione)"]
[229,null,null,null,null,"(Seleccione)","(Seleccione)",null,null,"(Seleccione)",null,"                                                                ","(Seleccione)"]
[230,null,null,null,null,"(Seleccione)","(Seleccione)",null,null,"(Seleccione)",null,"                                                                ","(Seleccione)"]
[231,null,null,null,null,"(Seleccione)","(Seleccione)",null,null,"(Seleccione)",null,"                                                                ","(Seleccione)"]
[232,null,null,null,null,"(Seleccione)","(Seleccione)",null,null,"(Seleccione)",null,"                                                                ","(Seleccione)"]
[233,null,null,null,null,"(Seleccione)","(Seleccione)",null,null,"(Seleccione)",null,"                                                                ","(Seleccione)"]
[234,null,null,null,null,"(Seleccione)","(Seleccione)",null,null,"(Seleccione)",null,"                                                                ","(Seleccione)"]
[235,null,null,null,null,"(Seleccione)","(Seleccione)",null,null,"(Seleccione)",null,"                                                                ","(Seleccione)"]
[236,null,null,null,null,"(Seleccione)","(Seleccione)",null,null,"(Seleccione)",null,"                                                                ","(Seleccione)"]
[237,null,null,null,null,"(Seleccione)","(Seleccione)",null,null,"(Seleccione)",null,"                                                                ","(Seleccione)"]
[238,null,null,null,null,"(Seleccione)","(Seleccione)",null,null,"(Seleccione)",null,"                                                                ","(Seleccione)"]
[239,null,null,null,null,"(Seleccione)","(Seleccione)",null,null,"(Seleccione)",null,"                                                                ","(Seleccione)"]
[240,null,null,null,null,"(Seleccione)","(Seleccione)",null,null,"(Seleccione)",null,"                                                                ","(Seleccione)"]
[241,null,null,null,null,"(Seleccione)","(Seleccione)",null,null,"(Seleccione)",null,"                                                                ","(Seleccione)"]
[242,null,null,null,null,"(Seleccione)","(Seleccione)",null,null,"(Seleccione)",null,"                                                                ","(Seleccione)"]
[243,null,null,null,null,"(Seleccione)","(Seleccione)",null,null,"(Seleccione)",null,"                                                                ","(Seleccione)"]
[244,null,null,null,null,"(Seleccione)","(Seleccione)",null,null,"(Seleccione)",null,"                                                                ","(Seleccione)"]
[245,null,null,null,null,"(Seleccione)","(Seleccione)",null,null,"(Seleccione)",null,"                                                                ","(Seleccione)"]
[246,null,null,null,null,"(Seleccione)","(Seleccione)",null,null,"(Seleccione)",null,"                                                                ","(Seleccione)"]
[247,null,null,null,null,"(Seleccione)","(Seleccione)",null,null,"(Seleccione)",null,"                                                                ","(Seleccione)"]
[248,null,null,null,null,"(Seleccione)","(Seleccione)",null,null,"(Seleccione)",null,"                                                                ","(Seleccione)"]
[249,null,null,null,null,"(Seleccione)","(Seleccione)",null,null,"(Seleccione)",null,"                                                                ","(Seleccione)"]
[250,null,null,null,null,"(Seleccione)","(Seleccione)",null,null,"(Seleccione)",null,"                                                                ","(Seleccione)"]
[251,null,null,null,null,"(Seleccione)","(Seleccione)",null,null,"(Seleccione)",null,"                                                                ","(Seleccione)"]
[252,null,null,null,null,"(Seleccione)","(Seleccione)",null,null,"(Seleccione)",null,"                                                                ","(Seleccione)"]
[253,null,null,null,null,"(Seleccione)","(Seleccione)",null,null,"(Seleccione)",null,"                                                                ","(Seleccione)"]
[254,null,null,null,null,"(Seleccione)","(Seleccione)",null,null,"(Seleccione)",null,"                                                                ","(Seleccione)"]
[255,null,null,null,null,"(Seleccione)","(Seleccione)",null,null,"(Seleccione)",null,"                                                                ","(Seleccione)"]
[256,null,null,null,null,"(Seleccione)","(Seleccione)",null,null,"(Seleccione)",null,"                                                                ","(Seleccione)"]
[257,null,null,null,null,"(Seleccione)","(Seleccione)",null,null,"(Seleccione)",null,"                                                                ","(Seleccione)"]
[258,null,null,null,null,"(Seleccione)","(Seleccione)",null,null,"(Seleccione)",null,"                                                                ","(Seleccione)"]
[259,null,null,null,null,"(Seleccione)","(Seleccione)",null,null,"(Seleccione)",null,"                                                                ","(Seleccione)"]
[260,null,null,null,null,"(Seleccione)","(Seleccione)",null,null,"(Seleccione)",null,"                                                                ","(Seleccione)"]
[261,null,null,null,null,"(Seleccione)","(Seleccione)",null,null,"(Seleccione)",null,"                                                                ","(Seleccione)"]
[262,null,null,null,null,"(Seleccione)","(Seleccione)",null,null,"(Seleccione)",null,"                                                                ","(Seleccione)"]
[263,null,null,null,null,"(Seleccione)","(Seleccione)",null,null,"(Seleccione)",null,"                                                                ","(Seleccione)"]
[264,null,null,null,null,"(Seleccione)","(Seleccione)",null,null,"(Seleccione)",null,"                                                                ","(Seleccione)"]
[265,null,null,null,null,"(Seleccione)","(Seleccione)",null,null,"(Seleccione)",null,"                                                                ","(Seleccione)"]
[266,null,null,null,null,"(Seleccione)","(Seleccione)",null,null,"(Seleccione)",null,"                                                                ","(Seleccione)"]
[267,null,null,null,null,"(Seleccione)","(Seleccione)",null,null,"(Seleccione)",null,"                                                                ","(Seleccione)"]
[268,null,null,null,null,"(Seleccione)","(Seleccione)",null,null,"(Seleccione)",null,"                                                                ","(Seleccione)"]
[269,null,null,null,null,"(Seleccione)","(Seleccione)",null,null,"(Seleccione)",null,"                                                                ","(Seleccione)"]
[270,null,null,null,null,"(Seleccione)","(Seleccione)",null,null,"(Seleccione)",null,"                                                                ","(Seleccione)"]
[271,null,null,null,null,"(Seleccione)","(Seleccione)",null,null,"(Seleccione)",null,"                                                                ","(Seleccione)"]
[272,null,null,null,null,"(Seleccione)","(Seleccione)",null,null,"(Seleccione)",null,"                                                                ","(Seleccione)"]
[273,null,null,null,null,"(Seleccione)","(Seleccione)",null,null,"(Seleccione)",null,"                                                                ","(Seleccione)"]
[274,null,null,null,null,"(Seleccione)","(Seleccione)",null,null,"(Seleccione)",null,"                                                                ","(Seleccione)"]
[275,null,null,null,null,"(Seleccione)","(Seleccione)",null,null,"(Seleccione)",null,"                                                                ","(Seleccione)"]
[276,null,null,null,null,"(Seleccione)","(Seleccione)",null,null,"(Seleccione)",null,"                                                                ","(Seleccione)"]
[277,null,null,null,null,"(Seleccione)","(Seleccione)",null,null,"(Seleccione)",null,"                                                                ","(Seleccione)"]
[{"$f":"+A295+1","v":278},null,null,null,null,"(Seleccione)","(Seleccione)",null,null,"(Seleccione)",null,"                                                                ","(Seleccione)"]
[279,null,null,null,null,"(Seleccione)","(Seleccione)",null,null,"(Seleccione)",null,"                                                                ","(Seleccione)"]
[280,null,null,null,null,"(Seleccione)","(Seleccione)",null,null,"(Seleccione)",null,"                                                                ","(Seleccione)"]
[281,null,null,null,null,"(Seleccione)","(Seleccione)",null,null,"(Seleccione)",null,"                                                                ","(Seleccione)"]
[282,null,null,null,null,"(Seleccione)","(Seleccione)",null,null,"(Seleccione)",null,"                                                                ","(Seleccione)"]
[283,null,null,null,null,"(Seleccione)","(Seleccione)",null,null,"(Seleccione)",null,"                                                                ","(Seleccione)"]
[284,null,null,null,null,"(Seleccione)","(Seleccione)",null,null,"(Seleccione)",null,"                                                                ","(Seleccione)"]
[285,null,null,null,null,"(Seleccione)","(Seleccione)",null,null,"(Seleccione)",null,"                                                                ","(Seleccione)"]
[286,null,null,null,null,"(Seleccione)","(Seleccione)",null,null,"(Seleccione)",null,"                                                                ","(Seleccione)"]
[287,null,null,null,null,"(Seleccione)","(Seleccione)",null,null,"(Seleccione)",null,"                                                                ","(Seleccione)"]
[288,null,null,null,null,"(Seleccione)","(Seleccione)",null,null,"(Seleccione)",null,"                                                                ","(Seleccione)"]
[289,null,null,null,null,"(Seleccione)","(Seleccione)",null,null,"(Seleccione)",null,"                                                                ","(Seleccione)"]
[290,null,null,null,null,"(Seleccione)","(Seleccione)",null,null,"(Seleccione)",null,"                                                                ","(Seleccione)"]
[291,null,null,null,null,"(Seleccione)","(Seleccione)",null,null,"(Seleccione)",null,"                                                                ","(Seleccione)"]
[292,null,null,null,null,"(Seleccione)","(Seleccione)",null,null,"(Seleccione)",null,"                                                                ","(Seleccione)"]
[293,null,null,null,null,"(Seleccione)","(Seleccione)",null,null,"(Seleccione)",null,"                                                                ","(Seleccione)"]
[294,null,null,null,null,"(Seleccione)","(Seleccione)",null,null,"(Seleccione)",null,"                                                                ","(Seleccione)"]
[295,null,null,null,null,"(Seleccione)","(Seleccione)",null,null,"(Seleccione)",null,"                                                                ","(Seleccione)"]
[296,null,null,null,null,"(Seleccione)","(Seleccione)",null,null,"(Seleccione)",null,"                                                                ","(Seleccione)"]
[297,null,null,null,null,"(Seleccione)","(Seleccione)",null,null,"(Seleccione)",null,"                                                                ","(Seleccione)"]
[298,null,null,null,null,"(Seleccione)","(Seleccione)",null,null,"(Seleccione)",null,"                                                                ","(Seleccione)"]
[299,null,null,null,null,"(Seleccione)","(Seleccione)",null,null,"(Seleccione)",null,"                                                                ","(Seleccione)"]
[300,null,null,null,null,"(Seleccione)","(Seleccione)",null,null,"(Seleccione)",null,"                                                                ","(Seleccione)"]
[301,null,null,null,null,"(Seleccione)","(Seleccione)",null,null,"(Seleccione)",null,"                                                                ","(Seleccione)"]
[302,null,null,null,null,"(Seleccione)","(Seleccione)",null,null,"(Seleccione)",null,"                                                                ","(Seleccione)"]
[303,null,null,null,null,"(Seleccione)","(Seleccione)",null,null,"(Seleccione)",null,"                                                                ","(Seleccione)"]
[304,null,null,null,null,"(Seleccione)","(Seleccione)",null,null,"(Seleccione)",null,"                                                                ","(Seleccione)"]
[305,null,null,null,null,"(Seleccione)","(Seleccione)",null,null,"(Seleccione)",null,"                                                                ","(Seleccione)"]
[306,null,null,null,null,"(Seleccione)","(Seleccione)",null,null,"(Seleccione)",null,"                                                                ","(Seleccione)"]
[307,null,null,null,null,"(Seleccione)","(Seleccione)",null,null,"(Seleccione)",null,"                                                                ","(Seleccione)"]
[308,null,null,null,null,"(Seleccione)","(Seleccione)",null,null,"(Seleccione)",null,"                                                                ","(Seleccione)"]
[309,null,null,null,null,"(Seleccione)","(Seleccione)",null,null,"(Seleccione)",null,"                                                                ","(Seleccione)"]
[310,null,null,null,null,"(Seleccione)","(Seleccione)",null,null,"(Seleccione)",null,"                                                                ","(Seleccione)"]
[311,null,null,null,null,"(Seleccione)","(Seleccione)",null,null,"(Seleccione)",null,"                                                                ","(Seleccione)"]
[312,null,null,null,null,"(Seleccione)","(Seleccione)",null,null,"(Seleccione)",null,"                                                                ","(Seleccione)"]
[313,null,null,null,null,"(Seleccione)","(Seleccione)",null,null,"(Seleccione)",null,"                                                                ","(Seleccione)"]
[314,null,null,null,null,"(Seleccione)","(Seleccione)",null,null,"(Seleccione)",null,"                                                                ","(Seleccione)"]
[315,null,null,null,null,"(Seleccione)","(Seleccione)",null,null,"(Seleccione)",null,"                                                                ","(Seleccione)"]
[316,null,null,null,null,"(Seleccione)","(Seleccione)",null,null,"(Seleccione)",null,"                                                                ","(Seleccione)"]
[317,null,null,null,null,"(Seleccione)","(Seleccione)",null,null,"(Seleccione)",null,"                                                                ","(Seleccione)"]
[318,null,null,null,null,"(Seleccione)","(Seleccione)",null,null,"(Seleccione)",null,"                                                                ","(Seleccione)"]
[319,null,null,null,null,"(Seleccione)","(Seleccione)",null,null,"(Seleccione)",null,"                                                                ","(Seleccione)"]
[320,null,null,null,null,"(Seleccione)","(Seleccione)",null,null,"(Seleccione)",null,"                                                                ","(Seleccione)"]
[321,null,null,null,null,"(Seleccione)","(Seleccione)",null,null,"(Seleccione)",null,"                                                                ","(Seleccione)"]
[322,null,null,null,null,"(Seleccione)","(Seleccione)",null,null,"(Seleccione)",null,"                                                                ","(Seleccione)"]
[323,null,null,null,null,"(Seleccione)","(Seleccione)",null,null,"(Seleccione)",null,"                                                                ","(Seleccione)"]
[324,null,null,null,null,"(Seleccione)","(Seleccione)",null,null,"(Seleccione)",null,"                                                                ","(Seleccione)"]
[325,null,null,null,null,"(Seleccione)","(Seleccione)",null,null,"(Seleccione)",null,"                                                                ","(Seleccione)"]
[326,null,null,null,null,"(Seleccione)","(Seleccione)",null,null,"(Seleccione)",null,"                                                                ","(Seleccione)"]
[327,null,null,null,null,"(Seleccione)","(Seleccione)",null,null,"(Seleccione)",null,"                                                                ","(Seleccione)"]
[328,null,null,null,null,"(Seleccione)","(Seleccione)",null,null,"(Seleccione)",null,"                                                                ","(Seleccione)"]
[{"$f":"+A346+1","v":329},null,null,null,null,"(Seleccione)","(Seleccione)",null,null,"(Seleccione)",null,"                                                                ","(Seleccione)"]
[{"$f":"+A347+1","v":330},null,null,null,null,"(Seleccione)","(Seleccione)",null,null,"(Seleccione)",null,"                                                                ","(Seleccione)"]
[{"$f":"+A348+1","v":331},null,null,null,null,"(Seleccione)","(Seleccione)",null,null,"(Seleccione)",null,"                                                                ","(Seleccione)"]
[332,null,null,null,null,"(Seleccione)","(Seleccione)",null,null,"(Seleccione)",null,"                                                                ","(Seleccione)"]
[333,null,null,null,null,"(Seleccione)","(Seleccione)",null,null,"(Seleccione)",null,"                                                                ","(Seleccione)"]
[334,null,null,null,null,"(Seleccione)","(Seleccione)",null,null,"(Seleccione)",null,"                                                                ","(Seleccione)"]
[335,null,null,null,null,"(Seleccione)","(Seleccione)",null,null,"(Seleccione)",null,"                                                                ","(Seleccione)"]
[336,null,null,null,null,"(Seleccione)","(Seleccione)",null,null,"(Seleccione)",null,"                                                                ","(Seleccione)"]
[337,null,null,null,null,"(Seleccione)","(Seleccione)",null,null,"(Seleccione)",null,"                                                                ","(Seleccione)"]
[338,null,null,null,null,"(Seleccione)","(Seleccione)",null,null,"(Seleccione)",null,"                                                                ","(Seleccione)"]
[339,null,null,null,null,"(Seleccione)","(Seleccione)",null,null,"(Seleccione)",null,"                                                                ","(Seleccione)"]
[340,null,null,null,null,"(Seleccione)","(Seleccione)",null,null,"(Seleccione)",null,"                                                                ","(Seleccione)"]
[341,null,null,null,null,"(Seleccione)","(Seleccione)",null,null,"(Seleccione)",null,"                                                                ","(Seleccione)"]
[342,null,null,null,null,"(Seleccione)","(Seleccione)",null,null,"(Seleccione)",null,"                                                                ","(Seleccione)"]
[343,null,null,null,null,"(Seleccione)","(Seleccione)",null,null,"(Seleccione)",null,"                                                                ","(Seleccione)"]
[344,null,null,null,null,"(Seleccione)","(Seleccione)",null,null,"(Seleccione)",null,"                                                                ","(Seleccione)"]
[345,null,null,null,null,"(Seleccione)","(Seleccione)",null,null,"(Seleccione)",null,"                                                                ","(Seleccione)"]
[346,null,null,null,null,"(Seleccione)","(Seleccione)",null,null,"(Seleccione)",null,"                                                                ","(Seleccione)"]
[347,null,null,null,null,"(Seleccione)","(Seleccione)",null,null,"(Seleccione)",null,"                                                                ","(Seleccione)"]
[348,null,null,null,null,"(Seleccione)","(Seleccione)",null,null,"(Seleccione)",null,"                                                                ","(Seleccione)"]
[{"$f":"+A366+1","v":349},null,null,null,null,"(Seleccione)","(Seleccione)",null,null,"(Seleccione)",null,"                                                                ","(Seleccione)"]
[{"$f":"+A367+1","v":350},null,null,null,null,"(Seleccione)","(Seleccione)",null,null,"(Seleccione)",null,"                                                                ","(Seleccione)"]

{"sheet":"BAJAS","index":2,"n_rows":364,"n_cols":18,"rows_kept":364,"cut":false,"hidden":false,"merged":[[13,4,14,4],[13,5,14,5],[2,6,2,7],[4,6,4,7],[4,10,4,13],[13,6,14,6],[13,7,14,7]]}
[]
[]
[null,null,null,null,null,"Registrante",{"$f":"Identificación!C20","v":0}]
[null,null,null,null,null,{"$f":"IF(AND($E$227>0,$J$229=0),\"Complete\",\"  \")","v":"  "},null,null,null,"Firma:"]
[null,null,null,null,null,"Fecha",{"$f":"Identificación!S16","v":"00:00:00"},null,null,"Aclaración:",{"$f":"Identificación!C26","v":0}]
[]
[]
[]
[]
[null,null,null,null,null,"Ingrese en la casilla, la cantidad de equipos de transporte que dará de baja  ",1,"  y haga click en el botón siguiente para generar la planilla"]
[]
[]
[]
[null,null,null,null,"Marca","Modelo","Año","Matrícula "]
[]
[null,null,null,1]
[null,null,null,2,null,null,null,null,null,null,null,null,null,null,null,null,null,"(Seleccione)"]
[null,null,null,3,null,null,null,null,null,null,null,null,null,null,null,"(Seleccione)",null,"NO"]
[null,null,null,4,null,null,null,null,null,null,null,null,null,null,null,"Vehículo",null,"Volcadora"]
[null,null,null,5,null,null,null,null,null,null,null,null,null,null,null,"Acoplado",null,"Pluma instalada"]
[null,null,null,6,null,null,null,null,null,null,null,null,null,null,null,null,null,"Otro"]
[null,null,null,7,null,null,null,null,null,null,null,null,null,null,null,null,"(Seleccione)"]
[null,null,null,8,null,null,null,null,null,null,null,null,null,null,null,null,"Cat. I"]
[null,null,null,9,null,null,null,null,null,null,null,null,null,null,null,null,"Cat. II"]
[null,null,null,10,null,null,null,null,null,null,null,null,null,null,null,null,"Cat I y II"]
[null,null,null,11,null,null,null,null,null,null,null,null,null,null,null,null,"(Seleccione)"]
[null,null,null,12,null,null,null,null,null,null,null,null,null,null,null,null,"Caja abierta"]
[null,null,null,13,null,null,null,null,null,null,null,null,null,null,null,null,"Caja Cerrada"]
[null,null,null,14,null,null,null,null,null,null,null,null,null,null,null,null,"Portacontenedor"]
[null,null,null,15,null,null,null,null,null,null,null,null,null,null,null,null,"Cisterna"]
[null,null,null,16]
[null,null,null,17]
[null,null,null,18]
[null,null,null,19]
[null,null,null,20]
[null,null,null,{"$f":"+D35+1","v":21}]
[null,null,null,{"$f":"+D36+1","v":22}]
[null,null,null,23]
[null,null,null,24]
[null,null,null,25]
[null,null,null,26]
[null,null,null,27]
[null,null,null,28]
[null,null,null,29]
[null,null,null,30]
[null,null,null,31]
[null,null,null,32]
[null,null,null,33]
[null,null,null,34]
[null,null,null,35]
[null,null,null,36]
[null,null,null,37]
[null,null,null,38]
[null,null,null,39]
[null,null,null,40]
[null,null,null,41]
[null,null,null,42]
[null,null,null,43]
[null,null,null,44]
[null,null,null,45]
[null,null,null,46]
[null,null,null,47]
[null,null,null,48]
[null,null,null,49]
[null,null,null,50]
[null,null,null,51]
[null,null,null,52]
[null,null,null,53]
[null,null,null,54]
[null,null,null,55]
[null,null,null,56]
[null,null,null,57]
[null,null,null,58]
[null,null,null,59]
[null,null,null,60]
[null,null,null,61]
[null,null,null,62]
[null,null,null,63]
[null,null,null,64]
[null,null,null,65]
[null,null,null,66]
[null,null,null,67]
[null,null,null,68]
[null,null,null,69]
[null,null,null,70]
[null,null,null,71]
[null,null,null,72]
[null,null,null,73]
[null,null,null,74]
[null,null,null,75]
[null,null,null,76]
[null,null,null,77]
[null,null,null,78]
[null,null,null,79]
[null,null,null,80]
[null,null,null,81]
[null,null,null,82]
[null,null,null,83]
[null,null,null,84]
[null,null,null,85]
[null,null,null,{"$f":"+D100+1","v":86}]
[null,null,null,87]
[null,null,null,88]
[null,null,null,89]
[null,null,null,90]
[null,null,null,91]
[null,null,null,92]
[null,null,null,93]
[null,null,null,94]
[null,null,null,95]
[null,null,null,96]
[null,null,null,97]
[null,null,null,98]
[null,null,null,99]
[null,null,null,100]
[null,null,null,101]
[null,null,null,102]
[null,null,null,103]
[null,null,null,104]
[null,null,null,105]
[null,null,null,106]
[null,null,null,107]
[null,null,null,108]
[null,null,null,109]
[null,null,null,110]
[null,null,null,111]
[null,null,null,112]
[null,null,null,113]
[null,null,null,114]
[null,null,null,115]
[null,null,null,116]
[null,null,null,117]
[null,null,null,118]
[null,null,null,119]
[null,null,null,120]
[null,null,null,121]
[null,null,null,122]
[null,null,null,123]
[null,null,null,124]
[null,null,null,125]
[null,null,null,126]
[null,null,null,127]
[null,null,null,128]
[null,null,null,129]
[null,null,null,130]
[null,null,null,131]
[null,null,null,132]
[null,null,null,133]
[null,null,null,134]
[null,null,null,135]
[null,null,null,136]
[null,null,null,137]
[null,null,null,138]
[null,null,null,139]
[null,null,null,140]
[null,null,null,141]
[null,null,null,142]
[null,null,null,143]
[null,null,null,144]
[null,null,null,145]
[null,null,null,146]
[null,null,null,147]
[null,null,null,148]
[null,null,null,149]
[null,null,null,{"$f":"+D164+1","v":150}]
[null,null,null,151]
[null,null,null,152]
[null,null,null,153]
[null,null,null,154]
[null,null,null,155]
[null,null,null,156]
[null,null,null,157]
[null,null,null,158]
[null,null,null,159]
[null,null,null,160]
[null,null,null,161]
[null,null,null,162]
[null,null,null,163]
[null,null,null,164]
[null,null,null,165]
[null,null,null,166]
[null,null,null,167]
[null,null,null,168]
[null,null,null,169]
[null,null,null,170]
[null,null,null,171]
[null,null,null,172]
[null,null,null,173]
[null,null,null,174]
[null,null,null,175]
[null,null,null,176]
[null,null,null,177]
[null,null,null,178]
[null,null,null,179]
[null,null,null,180]
[null,null,null,181]
[null,null,null,182]
[null,null,null,183]
[null,null,null,184]
[null,null,null,185]
[null,null,null,186]
[null,null,null,187]
[null,null,null,188]
[null,null,null,189]
[null,null,null,190]
[null,null,null,191]
[null,null,null,192]
[null,null,null,193]
[null,null,null,194]
[null,null,null,195]
[null,null,null,196]
[null,null,null,197]
[null,null,null,198]
[null,null,null,199]
[null,null,null,200]
[null,null,null,201]
[null,null,null,202]
[null,null,null,203]
[null,null,null,204]
[null,null,null,205]
[null,null,null,206]
[null,null,null,207]
[null,null,null,208]
[null,null,null,209]
[null,null,null,210]
[null,null,null,211]
[null,null,null,212]
[null,null,null,213]
[null,null,null,{"$f":"+D228+1","v":214}]
[null,null,null,215]
[null,null,null,216]
[null,null,null,217]
[null,null,null,218]
[null,null,null,219]
[null,null,null,220]
[null,null,null,221]
[null,null,null,222]
[null,null,null,223]
[null,null,null,224]
[null,null,null,225]
[null,null,null,226]
[null,null,null,227]
[null,null,null,228]
[null,null,null,229]
[null,null,null,230]
[null,null,null,231]
[null,null,null,232]
[null,null,null,233]
[null,null,null,234]
[null,null,null,235]
[null,null,null,236]
[null,null,null,237]
[null,null,null,238]
[null,null,null,239]
[null,null,null,240]
[null,null,null,241]
[null,null,null,242]
[null,null,null,243]
[null,null,null,244]
[null,null,null,245]
[null,null,null,246]
[null,null,null,247]
[null,null,null,248]
[null,null,null,249]
[null,null,null,250]
[null,null,null,251]
[null,null,null,252]
[null,null,null,253]
[null,null,null,254]
[null,null,null,255]
[null,null,null,256]
[null,null,null,257]
[null,null,null,258]
[null,null,null,259]
[null,null,null,260]
[null,null,null,261]
[null,null,null,262]
[null,null,null,263]
[null,null,null,264]
[null,null,null,265]
[null,null,null,266]
[null,null,null,267]
[null,null,null,268]
[null,null,null,269]
[null,null,null,270]
[null,null,null,271]
[null,null,null,272]
[null,null,null,273]
[null,null,null,274]
[null,null,null,275]
[null,null,null,276]
[null,null,null,277]
[null,null,null,{"$f":"+D292+1","v":278}]
[null,null,null,279]
[null,null,null,280]
[null,null,null,281]
[null,null,null,282]
[null,null,null,283]
[null,null,null,284]
[null,null,null,285]
[null,null,null,286]
[null,null,null,287]
[null,null,null,288]
[null,null,null,289]
[null,null,null,290]
[null,null,null,291]
[null,null,null,292]
[null,null,null,293]
[null,null,null,294]
[null,null,null,295]
[null,null,null,296]
[null,null,null,297]
[null,null,null,298]
[null,null,null,299]
[null,null,null,300]
[null,null,null,301]
[null,null,null,302]
[null,null,null,303]
[null,null,null,304]
[null,null,null,305]
[null,null,null,306]
[null,null,null,307]
[null,null,null,308]
[null,null,null,309]
[null,null,null,310]
[null,null,null,311]
[null,null,null,312]
[null,null,null,313]
[null,null,null,314]
[null,null,null,315]
[null,null,null,316]
[null,null,null,317]
[null,null,null,318]
[null,null,null,319]
[null,null,null,320]
[null,null,null,321]
[null,null,null,322]
[null,null,null,323]
[null,null,null,324]
[null,null,null,325]
[null,null,null,326]
[null,null,null,327]
[null,null,null,328]
[null,null,null,{"$f":"+D343+1","v":329}]
[null,null,null,{"$f":"+D344+1","v":330}]
[null,null,null,{"$f":"+D345+1","v":331}]
[null,null,null,332]
[null,null,null,333]
[null,null,null,334]
[null,null,null,335]
[null,null,null,336]
[null,null,null,337]
[null,null,null,338]
[null,null,null,339]
[null,null,null,340]
[null,null,null,341]
[null,null,null,342]
[null,null,null,343]
[null,null,null,344]
[null,null,null,345]
[null,null,null,346]
[null,null,null,347]
[null,null,null,348]
[null,null,null,{"$f":"+D363+1","v":349}]